bitfinex/quotes_BTCUSD_20240927
["timestamp","ask_amount","ask_price","bid_price","bid_amount"]
[1727395403228,3.44889663,65234.0,65223.0,0.001654]
[1727395403646,3.44289663,65234.0,65223.0,0.001654]
[1727395403809,3.45589663,65234.0,65223.0,0.001654]
[1727395404029,3.46689663,65234.0,65223.0,0.001654]
[1727395404426,3.44285697,65234.0,65223.0,0.001654]
[1727395404820,3.21015897,65234.0,65223.0,0.001654]
[1727395405232,3.12781197,65234.0,65223.0,0.001654]
[1727395407500,3.12981197,65234.0,65223.0,0.001654]
[1727395407701,2.50070897,65234.0,65223.0,0.001654]
[1727395407962,2.38816897,65234.0,65223.0,0.001654]
[1727395409260,2.31448797,65234.0,65223.0,0.001654]
[1727395409641,2.32036367,65234.0,65223.0,0.001654]
[1727395411942,2.25010365,65234.0,65223.0,0.001654]
[1727395412829,2.23910365,65234.0,65223.0,0.001654]
[1727395413081,2.22610365,65234.0,65223.0,0.001654]
[1727395413290,2.23610365,65234.0,65223.0,0.001654]
[1727395413493,2.24810365,65234.0,65223.0,0.001654]
[1727395414599,2.22406167,65234.0,65223.0,0.001654]
[1727395418047,1.21416367,65234.0,65223.0,0.078054]
[1727395418296,0.84441967,65234.0,65223.0,0.078054]
[1727395418712,0.84441967,65234.0,65223.0,0.001654]
[1727395418956,0.84641967,65234.0,65223.0,0.001654]
[1727395419162,0.83641967,65234.0,65223.0,0.001654]
[1727395419384,0.84541967,65234.0,65223.0,0.001654]
[1727395419591,0.83141967,65234.0,65223.0,0.001654]
[1727395420026,0.84241967,65234.0,65223.0,0.001654]
[1727395421031,0.84441967,65234.0,65223.0,0.001654]
[1727395421233,0.84241967,65234.0,65223.0,0.001654]
[1727395421856,0.8664612,65234.0,65223.0,0.001654]
[1727395423375,2.0297152,65234.0,65223.0,0.001654]
[1727395423584,1.9739652,65234.0,65223.0,0.001654]
[1727395424197,1.9629652,65234.0,65223.0,0.001654]
[1727395424664,1.95192367,65234.0,65223.0,0.001654]
[1727395424880,1.94092367,65234.0,65223.0,0.001654]
[1727395425342,1.94292367,65234.0,65223.0,0.001654]
[1727395425548,1.93192367,65234.0,65223.0,0.001654]
[1727395425772,1.94092367,65234.0,65223.0,0.001654]
[1727395426227,1.93192367,65234.0,65223.0,0.001654]
[1727395426459,1.94092367,65234.0,65223.0,0.001654]
[1727395426916,1.95192367,65234.0,65223.0,0.001654]
[1727395427157,1.94292367,65234.0,65223.0,0.001654]
[1727395427396,1.95192367,65234.0,65223.0,0.001654]
[1727395428046,1.93220367,65234.0,65223.0,0.001654]
[1727395428492,1.52412367,65234.0,65223.0,0.001654]
[1727395429803,1.51512367,65234.0,65223.0,0.001654]
[1727395430014,1.51312367,65234.0,65223.0,0.001654]
[1727395430230,1.52112367,65234.0,65223.0,0.001654]
[1727395430460,1.51012367,65234.0,65223.0,0.001654]
[1727395430941,1.52012367,65234.0,65223.0,0.001654]
[1727395432033,1.54416527,65234.0,65223.0,0.001654]
[1727395433775,1.38777721,65234.0,65230.0,0.0815]
[1727395433994,1.13046321,65234.0,65230.0,0.0815]
[1727395434612,1.10642161,65234.0,65230.0,0.0815]
[1727395435459,1.10642161,65234.0,65226.0,0.0923]
[1727395436716,1.10642161,65234.0,65225.0,0.0815]
[1727395437211,1.10623719,65234.0,65225.0,0.0815]
[1727395437841,1.13027833,65234.0,65225.0,0.0815]
[1727395438050,1.28666639,65234.0,65225.0,0.0815]
[1727395438940,1.26262525,65234.0,65225.0,0.0815]
[1727395441817,1.26262525,65234.0,65223.0,0.001654]
[1727395442064,1.45201084,65234.0,65223.0,0.001654]
[1727395442517,1.38306649,65234.0,65223.0,0.001654]
[1727395443979,0.002,65230.0,65223.0,0.001654]
[1727395444129,0.40126384,65224.0,65223.0,0.001654]
[1727395444546,1.18909884,65224.0,65223.0,0.001654]
[1727395444788,0.60866584,65224.0,65223.0,0.001654]
[1727395445429,0.60866584,65224.0,65223.0,0.003654]
[1727395445853,0.222654,65224.0,65223.0,0.085154]
[1727395446066,0.222654,65224.0,65223.0,0.083154]
[1727395446726,0.35224247,65224.0,65223.0,0.083154]
[1727395447410,0.35324247,65224.0,65223.0,0.083154]
[1727395447631,0.35224247,65224.0,65223.0,0.083154]
[1727395447860,0.37628428,65224.0,65223.0,0.083154]
[1727395448078,0.38356778,65224.0,65223.0,0.083154]
[1727395448308,0.25397931,65224.0,65223.0,0.179954]
[1727395448817,0.2299375,65224.0,65223.0,0.179954]
[1727395449052,0.2299375,65224.0,65223.0,0.181954]
[1727395451951,0.25397922,65224.0,65223.0,0.181954]
[1727395452189,0.3974875,65224.0,65223.0,0.181954]
[1727395452698,0.46657382,65224.0,65223.0,0.181954]
[1727395452926,0.3974875,65224.0,65223.0,0.181954]
[1727395454732,0.4032093,65224.0,65223.0,0.181954]
[1727395456959,0.03704702,65224.0,65223.0,0.33531]
[1727395457153,0.01072245,65224.0,65223.0,0.33531]
[1727395457365,0.00343895,65224.0,65223.0,0.33531]
[1727395457576,0.000828,65234.0,65231.0,0.12264]
[1727395457795,0.000828,65234.0,65233.0,0.203137]
[1727395458023,0.000828,65234.0,65233.0,0.299937]
[1727395458276,0.000828,65234.0,65233.0,0.330637]
[1727395460304,0.001828,65234.0,65233.0,0.337637]
[1727395460719,0.002828,65234.0,65233.0,0.337637]
[1727395461197,0.001828,65234.0,65233.0,0.337637]
[1727395461881,0.002828,65234.0,65233.0,0.337637]
[1727395462106,0.001828,65234.0,65233.0,0.330637]
[1727395462540,0.002828,65234.0,65233.0,0.335637]
[1727395463410,0.001828,65234.0,65233.0,0.330637]
[1727395464330,0.000828,65234.0,65233.0,0.330637]
[1727395464564,0.001828,65234.0,65233.0,0.330637]
[1727395464782,0.000828,65234.0,65233.0,0.330637]
[1727395465246,0.001828,65234.0,65233.0,0.330637]
[1727395465484,0.001828,65234.0,65233.0,0.335637]
[1727395465914,0.001828,65234.0,65233.0,0.330637]
[1727395466145,0.002828,65234.0,65233.0,0.335637]
[1727395466655,0.002828,65234.0,65233.0,0.51424684]
[1727395468070,0.000828,65240.0,65239.0,0.33193584]
[1727395468323,0.000828,65240.0,65239.0,0.49883584]
[1727395468570,0.01206806,65240.0,65239.0,0.49883584]
[1727395468791,0.000828,65240.0,65239.0,0.49883584]
[1727395469314,0.001828,65240.0,65239.0,0.50383584]
[1727395469544,0.002828,65240.0,65239.0,0.50383584]
[1727395472135,0.2298375,65248.0,65247.0,0.122611]
[1727395472368,0.2298375,65248.0,65247.0,0.320211]
[1727395472631,0.24113229,65248.0,65247.0,0.320211]
[1727395472857,0.2298375,65248.0,65247.0,0.320211]
[1727395473542,0.2298375,65248.0,65247.0,0.329211]
[1727395474530,0.2298375,65255.0,65252.0,0.0307]
[1727395475891,0.2298375,65255.0,65254.0,0.153297]
[1727395476114,0.2298375,65255.0,65254.0,0.0307]
[1727395476592,0.3524325,65255.0,65254.0,0.0307]
[1727395476859,0.122595,65255.0,65254.0,0.0307]
[1727395477080,0.122597,65254.0,65253.0,0.0307]
[1727395477981,0.245182,65258.0,65250.0,0.0307]
[1727395478214,0.122599,65253.0,65250.0,0.0307]
[1727395478664,0.91951909,65251.0,65250.0,0.0307]
[1727395478893,0.245193,65255.0,65250.0,0.0307]
[1727395479140,0.91951909,65254.0,65250.0,0.006]
[1727395479413,0.91951909,65254.0,65253.0,0.008]
[1727395479641,1.04211609,65254.0,65253.0,0.008]
[1727395480355,0.122597,65254.0,65253.0,0.008]
[1727395480586,0.245193,65255.0,65250.0,0.0437]
[1727395480816,0.122602,65252.0,65250.0,0.0437]
[1727395481042,0.122602,65252.0,65250.0,0.0557]
[1727395481296,0.122602,65252.0,65250.0,0.0437]
[1727395481776,0.245193,65255.0,65250.0,0.0437]
[1727395482049,0.122598,65254.0,65250.0,0.0307]
[1727395482269,0.245193,65255.0,65250.0,0.0367]
[1727395482503,0.122602,65252.0,65250.0,0.0367]
[1727395482732,0.122597,65254.0,65250.0,0.159304]
[1727395482980,0.122602,65252.0,65250.0,0.0367]
[1727395483204,0.122602,65252.0,65250.0,0.0407]
[1727395483428,0.17860984,65261.0,65250.0,0.0407]
[1727395483644,0.122602,65252.0,65250.0,0.0407]
[1727395483855,0.122599,65254.0,65250.0,0.163304]
[1727395484061,0.122599,65254.0,65250.0,0.0407]
[1727395484062,0.245197,65254.0,65250.0,0.0407]
[1727395484282,0.122598,65254.0,65250.0,0.0347]
[1727395484531,0.122602,65252.0,65250.0,0.0347]
[1727395484748,0.00400153,65253.0,65250.0,0.0387]
[1727395484929,0.00400153,65253.0,65247.0,0.1669]
[1727395484930,0.00399908,65251.0,65248.0,0.0307]
[1727395485172,0.122601,65252.0,65251.0,0.0307]
[1727395486307,0.245188,65256.0,65249.0,0.0307]
[1727395486534,0.122594,65256.0,65252.0,0.122599]
[1727395486756,0.24599,65263.0,65250.0,0.0307]
[1727395486757,0.000827,65263.0,65250.0,0.0307]
[1727395486972,0.100827,65263.0,65258.0,0.122589]
[1727395487201,0.91951909,65257.0,65256.0,0.122592]
[1727395487434,0.122586,65261.0,65256.0,0.122592]
[1727395487643,0.223409,65263.0,65257.0,0.03073]
[1727395487875,0.223409,65263.0,65258.0,0.122589]
[1727395487876,0.1,65261.0,65258.0,0.122589]
[1727395488083,0.1,65261.0,65257.0,0.03073]
[1727395488305,0.1,65261.0,65257.0,0.153321]
[1727395488516,0.222586,65261.0,65257.0,0.153321]
[1727395489461,0.222586,65261.0,65257.0,0.03073]
[1727395489972,0.1,65261.0,65257.0,0.03073]
[1727395490432,0.122587,65260.0,65257.0,0.03973]
[1727395491127,0.1,65261.0,65257.0,0.03973]
[1727395491343,0.222586,65261.0,65257.0,0.04773]
[1727395491562,0.122584,65261.0,65260.0,0.03073]
[1727395491775,0.222584,65261.0,65260.0,0.03073]
[1727395492855,0.222584,65261.0,65260.0,0.11913]
[1727395494604,0.1,65261.0,65260.0,0.11913]
[1727395494877,0.1,65261.0,65260.0,0.12713]
[1727395495095,0.1,65261.0,65260.0,0.04773]
[1727395495096,0.222584,65261.0,65260.0,0.04773]
[1727395496635,0.1,65261.0,65260.0,0.04773]
[1727395497403,0.123408,65263.0,65262.0,0.122582]
[1727395497404,0.000827,65263.0,65262.0,0.122582]
[1727395498980,0.000827,65263.0,65262.0,0.166312]
[1727395499861,0.000827,65263.0,65262.0,0.159312]
[1727395500117,0.000827,65263.0,65262.0,0.168312]
[1727395500345,0.00486651,65263.0,65262.0,0.168312]
[1727395500570,0.000827,65263.0,65262.0,0.03973]
[1727395500814,0.00486651,65263.0,65262.0,0.170312]
[1727395501045,0.000827,65263.0,65262.0,0.162312]
[1727395501514,0.000827,65263.0,65262.0,0.172312]
[1727395501744,0.00486651,65263.0,65262.0,0.172312]
[1727395501974,0.000827,65263.0,65262.0,0.172312]
[1727395502209,0.22984807,65268.0,65265.0,0.153305]
[1727395502450,0.22984807,65268.0,65265.0,0.03073]
[1727395502451,0.35242007,65268.0,65265.0,0.03073]
[1727395502685,0.22984807,65268.0,65265.0,0.03073]
[1727395502912,0.00733802,65267.0,65266.0,0.203275]
[1727395503145,0.12258,65263.0,65262.0,0.01]
[1727395503381,0.2399668,65263.0,65262.0,0.01]
[1727395503636,0.29808629,65263.0,65252.0,0.03073]
[1727395503857,0.122604,65251.0,65245.0,0.122614]
[1727395504080,0.1173868,65247.0,65244.0,0.03073]
[1727395504325,0.1173868,65245.0,65244.0,0.03073]
[1727395504507,0.30167583,65245.0,65244.0,0.03073]
[1727395504714,0.30906198,65245.0,65244.0,0.03073]
[1727395505177,0.18644798,65245.0,65240.0,0.001654]
[1727395505404,0.122618,65244.0,65240.0,0.001654]
[1727395505619,0.18644798,65245.0,65240.0,0.001654]
[1727395505821,0.12998604,65243.0,65240.0,0.001654]
[1727395506074,0.00736704,65243.0,65240.0,0.001654]
[1727395506305,0.17906183,65245.0,65240.0,0.001654]
[1727395506306,0.13001066,65242.0,65240.0,0.001654]
[1727395506538,0.00739066,65242.0,65240.0,0.001654]
[1727395506767,0.00739066,65242.0,65240.0,0.007654]
[1727395506983,0.12262,65243.0,65240.0,0.007654]
[1727395507214,0.00736686,65241.0,65240.0,0.001654]
[1727395507702,0.12262,65243.0,65240.0,0.016654]
[1727395507941,0.00735891,65241.0,65240.0,0.009654]
[1727395508160,0.40898036,65244.0,65240.0,0.013654]
[1727395508363,0.40898036,65244.0,65240.0,0.009654]
[1727395508364,0.00739373,65241.0,65240.0,0.009654]
[1727395508595,0.53159736,65244.0,65240.0,0.009654]
[1727395508831,0.00735293,65241.0,65240.0,0.017654]
[1727395509058,0.40898036,65244.0,65240.0,0.009654]
[1727395509059,0.12996929,65243.0,65240.0,0.009654]
[1727395509291,0.0073845,65241.0,65240.0,0.009654]
[1727395509512,0.122618,65243.0,65240.0,0.009654]
[1727395509730,0.00738758,65241.0,65240.0,0.016654]
[1727395509964,0.40898036,65244.0,65240.0,0.016654]
[1727395510151,0.00738758,65241.0,65240.0,0.009654]
[1727395510364,0.122619,65243.0,65240.0,0.008654]
[1727395510572,0.40898036,65244.0,65240.0,0.013654]
[1727395510573,0.00739373,65241.0,65240.0,0.013654]
[1727395510795,0.40898036,65244.0,65240.0,0.013654]
[1727395511016,0.00739373,65241.0,65240.0,0.006654]
[1727395511243,0.22991853,65244.0,65240.0,0.006654]
[1727395511493,0.00735891,65241.0,65240.0,0.001654]
[1727395511711,0.22991853,65244.0,65240.0,0.005654]
[1727395511912,0.00736363,65241.0,65240.0,0.001654]
[1727395512127,0.22991853,65244.0,65240.0,0.032384]
[1727395512345,0.00737834,65241.0,65240.0,0.161008]
[1727395512592,0.47512653,65251.0,65241.0,0.275971]
[1727395512813,0.47512653,65251.0,65244.0,0.03073]
[1727395512814,0.245216,65249.0,65244.0,0.03073]
[1727395513047,0.122613,65246.0,65244.0,0.03073]
[1727395513268,0.01143017,65250.0,65244.0,0.03073]
[1727395513477,0.00735135,65245.0,65244.0,0.03073]
[1727395513679,0.122614,65246.0,65244.0,0.03073]
[1727395513946,0.01140798,65245.0,65241.0,0.03073]
[1727395514221,0.01140798,65245.0,65244.0,0.03773]
[1727395514443,0.01140798,65245.0,65244.0,0.03473]
[1727395514662,0.01140798,65245.0,65244.0,0.04173]
[1727395515107,0.01140798,65245.0,65244.0,0.157346]
[1727395515306,0.01140798,65245.0,65244.0,0.153346]
[1727395515765,0.01140798,65245.0,65244.0,0.161346]
[1727395516205,0.01140798,65245.0,65244.0,0.03073]
[1727395516645,0.01140798,65245.0,65244.0,0.04073]
[1727395517076,0.01140798,65245.0,65244.0,0.03773]
[1727395517292,0.01140798,65245.0,65244.0,0.04173]
[1727395517746,0.01140798,65245.0,65244.0,0.04873]
[1727395518031,0.01140798,65245.0,65244.0,0.04173]
[1727395518252,0.01140798,65245.0,65244.0,0.05073]
[1727395518677,0.01140798,65245.0,65244.0,0.153346]
[1727395518939,0.01140798,65245.0,65244.0,0.163346]
[1727395520034,0.01140798,65245.0,65244.0,0.04073]
[1727395520473,0.01140798,65245.0,65244.0,0.04773]
[1727395520688,0.01140798,65245.0,65244.0,0.04073]
[1727395521115,0.01140798,65245.0,65244.0,0.04973]
[1727395521327,0.01140798,65245.0,65244.0,0.04073]
[1727395521837,0.01140798,65245.0,65244.0,0.04973]
[1727395522270,0.01140798,65245.0,65244.0,0.04073]
[1727395522476,0.01140798,65245.0,65242.0,0.03073]
[1727395522662,0.01140798,65245.0,65244.0,0.04073]
[1727395523576,0.01140798,65245.0,65244.0,0.03073]
[1727395523793,0.01140798,65245.0,65243.0,0.03073]
[1727395524429,0.01140798,65245.0,65244.0,0.03973]
[1727395524610,0.01140798,65245.0,65244.0,0.03073]
[1727395524762,0.01140798,65245.0,65244.0,0.032382]
[1727395525840,0.01140798,65245.0,65244.0,0.154998]
[1727395526043,0.01140798,65245.0,65244.0,0.041382]
[1727395526241,0.01140798,65245.0,65244.0,0.051382]
[1727395526423,0.01140798,65245.0,65244.0,0.173998]
[1727395526628,0.01140798,65245.0,65244.0,0.041382]
[1727395527206,0.13402198,65245.0,65244.0,0.051382]
[1727395527424,0.13402198,65245.0,65244.0,0.042382]
[1727395527633,0.13402198,65245.0,65244.0,0.041382]
[1727395527841,0.13402198,65245.0,65244.0,0.032382]
[1727395528067,0.13402198,65245.0,65244.0,0.042382]
[1727395528284,0.13402198,65245.0,65244.0,0.051382]
[1727395528719,0.13402198,65245.0,65244.0,0.042382]
[1727395528929,0.13402198,65245.0,65244.0,0.051382]
[1727395529366,0.13402198,65245.0,65244.0,0.041382]
[1727395529807,0.13402198,65245.0,65244.0,0.051382]
[1727395531762,0.13037683,65245.0,65244.0,0.051382]
[1727395531980,0.22797683,65245.0,65244.0,0.020652]
[1727395532222,1.43714383,65245.0,65244.0,0.020652]
[1727395532453,1.59616183,65245.0,65244.0,0.020652]
[1727395532664,1.32812983,65245.0,65244.0,0.020652]
[1727395532887,1.32812983,65245.0,65244.0,0.010652]
[1727395532888,1.48451789,65245.0,65244.0,0.010652]
[1727395533425,1.4944315,65245.0,65244.0,0.012652]
[1727395533683,0.9951755,65245.0,65244.0,0.012652]
[1727395533897,0.8390335,65245.0,65244.0,0.010652]
[1727395534108,0.8390335,65245.0,65244.0,0.001652]
[1727395534535,0.8440335,65245.0,65244.0,0.001652]
[1727395537203,0.002,65241.0,65240.0,0.001654]
[1727395537439,0.002,65241.0,65223.0,0.001654]
[1727395537440,0.24012899,65224.0,65223.0,0.001654]
[1727395538547,0.30183576,65224.0,65223.0,0.001654]
[1727395539002,0.30911224,65224.0,65223.0,0.001654]
[1727395539215,0.40911224,65224.0,65223.0,0.005654]
[1727395539435,0.51828494,65224.0,65223.0,0.005654]
[1727395539884,0.74818938,65224.0,65223.0,0.005654]
[1727395540103,0.51828494,65224.0,65223.0,0.005654]
[1727395541045,0.40831224,65224.0,65223.0,0.005654]
[1727395541173,0.40821224,65224.0,65223.0,0.001654]
[1727395541390,0.41021224,65224.0,65223.0,0.001654]
[1727395541605,0.43215631,65224.0,65223.0,0.001654]
[1727395541830,0.43155631,65224.0,65223.0,0.001654]
[1727395542068,0.43355631,65224.0,65223.0,0.001654]
[1727395542290,2.48933631,65224.0,65223.0,0.001654]
[1727395542510,2.48903631,65224.0,65223.0,0.001654]
[1727395542681,2.48633631,65224.0,65223.0,0.001654]
[1727395543105,2.64472437,65224.0,65223.0,0.001654]
[1727395543280,2.64452437,65224.0,65223.0,0.001654]
[1727395543484,2.64392437,65224.0,65223.0,0.001654]
[1727395543669,2.64382437,65224.0,65223.0,0.002654]
[1727395544042,2.64372437,65224.0,65223.0,0.002654]
[1727395544246,2.64342437,65224.0,65223.0,0.002654]
[1727395544462,2.6187803,65224.0,65223.0,0.002654]
[1727395544921,2.46274516,65224.0,65223.0,0.002654]
[1727395545123,2.46254516,65224.0,65223.0,0.002654]
[1727395545316,2.46244516,65224.0,65223.0,0.002654]
[1727395545783,2.46234516,65224.0,65223.0,0.002654]
[1727395546593,2.46234516,65224.0,65223.0,0.001654]
[1727395546743,2.54507052,65224.0,65223.0,0.001654]
[1727395546955,2.2831634,65224.0,65223.0,0.001654]
[1727395548211,2.2811634,65224.0,65223.0,0.001654]
[1727395548450,2.2831634,65224.0,65223.0,0.001654]
[1727395548687,2.2811634,65224.0,65223.0,0.001654]
[1727395549121,2.61673322,65224.0,65223.0,0.001654]
[1727395549560,2.61673322,65224.0,65223.0,0.002654]
[1727395550436,2.61673322,65224.0,65223.0,0.005654]
[1727395550863,2.61673322,65224.0,65223.0,0.001654]
[1727395551119,2.640776,65224.0,65223.0,0.002654]
[1727395551341,2.640776,65224.0,65223.0,0.004654]
[1727395551764,2.640776,65224.0,65223.0,0.005654]
[1727395551990,2.640776,65224.0,65223.0,0.004654]
[1727395552253,2.640776,65224.0,65223.0,0.005654]
[1727395552711,2.640776,65224.0,65223.0,0.006654]
[1727395553123,2.48438794,65224.0,65223.0,0.006654]
[1727395553338,2.48438794,65224.0,65223.0,0.003654]
[1727395553557,2.48438794,65224.0,65223.0,0.006654]
[1727395554166,2.48438794,65224.0,65223.0,0.003654]
[1727395554391,2.48438794,65224.0,65223.0,0.006654]
[1727395554624,2.46034516,65224.0,65223.0,0.006654]
[1727395556382,2.55434516,65224.0,65223.0,0.006654]
[1727395556598,2.63334516,65224.0,65223.0,0.006654]
[1727395557456,2.63334516,65224.0,65223.0,0.001654]
[1727395557888,4.48860516,65224.0,65223.0,0.001654]
[1727395558309,4.49060516,65224.0,65223.0,0.001654]
[1727395558520,4.64499322,65224.0,65223.0,0.001654]
[1727395558970,4.64699322,65224.0,65223.0,0.001654]
[1727395559194,4.67103829,65224.0,65223.0,0.001654]
[1727395559418,4.64699322,65224.0,65223.0,0.001654]
[1727395560335,4.64599322,65224.0,65223.0,0.001654]
[1727395560758,4.65848446,65224.0,65223.0,0.001654]
[1727395561194,4.65931146,65224.0,65223.0,0.001654]
[1727395561883,4.68335688,65224.0,65223.0,0.001654]
[1727395562527,4.72852288,65224.0,65223.0,0.001654]
[1727395563442,4.72452288,65224.0,65223.0,0.001654]
[1727395563660,4.73252288,65224.0,65223.0,0.002654]
[1727395563906,4.73952288,65224.0,65223.0,0.003654]
[1727395564140,4.73252288,65224.0,65223.0,0.002654]
[1727395564353,4.73952288,65224.0,65223.0,0.003654]
[1727395564583,5.80925846,65224.0,65223.0,0.003654]
[1727395564788,5.80225846,65224.0,65223.0,0.002654]
[1727395564995,5.80225846,65224.0,65223.0,0.003654]
[1727395565213,5.80925846,65224.0,65223.0,0.003654]
[1727395565661,4.26927164,65224.0,65223.0,0.003654]
[1727395565879,4.3679884,65224.0,65223.0,0.002654]
[1727395566093,4.3779884,65224.0,65223.0,0.003654]
[1727395566728,4.3679884,65224.0,65223.0,0.002654]
[1727395567153,4.3759884,65224.0,65223.0,0.003654]
[1727395567387,4.53237646,65224.0,65223.0,0.003654]
[1727395569413,4.3759884,65224.0,65223.0,0.003654]
[1727395570408,4.31442397,65224.0,65223.0,0.003654]
[1727395574068,4.19680664,65224.0,65223.0,0.003654]
[1727395574298,4.31442397,65224.0,65223.0,0.003654]
[1727395578490,4.38333171,65224.0,65223.0,0.003654]
[1727395578628,4.53971977,65224.0,65223.0,0.003654]
[1727395578853,4.47081203,65224.0,65223.0,0.003654]
[1727395579495,7.02615303,65224.0,65223.0,0.003654]
[1727395581473,3.83151764,65224.0,65223.0,0.003654]
[1727395581695,2.92916497,65224.0,65223.0,0.003654]
[1727395581934,2.99813312,65224.0,65223.0,0.003654]
[1727395582175,3.0211225,65224.0,65223.0,0.003654]
[1727395582416,3.0964225,65224.0,65223.0,0.003654]
[1727395582649,3.25281056,65224.0,65223.0,0.003654]
[1727395582886,3.24481056,65224.0,65223.0,0.002654]
[1727395583109,3.26680505,65224.0,65223.0,0.001654]
[1727395583534,3.27380505,65224.0,65223.0,0.002654]
[1727395583751,3.26780505,65224.0,65223.0,0.002654]
[1727395584003,3.26780505,65224.0,65223.0,0.001654]
[1727395584004,3.23561002,65224.0,65223.0,0.001654]
[1727395584217,2.92349966,65224.0,65223.0,0.002654]
[1727395584497,2.92116497,65224.0,65223.0,0.002654]
[1727395584928,3.01818965,65224.0,65223.0,0.002654]
[1727395585136,3.0411975,65224.0,65223.0,0.002654]
[1727395585355,3.19758556,65224.0,65223.0,0.002654]
[1727395585576,3.17458583,65224.0,65223.0,0.002654]
[1727395585812,3.17458624,65224.0,65223.0,0.002654]
[1727395586035,3.08255303,65224.0,65223.0,0.002654]
[1727395587133,3.19758556,65224.0,65223.0,0.002654]
[1727395587568,3.08255303,65224.0,65223.0,0.002654]
[1727395588008,3.08255303,65224.0,65223.0,0.001654]
[1727395588009,3.16258897,65224.0,65223.0,0.001654]
[1727395588214,3.16258897,65224.0,65223.0,0.002654]
[1727395588215,3.16958897,65224.0,65223.0,0.002654]
[1727395588425,3.07755303,65224.0,65223.0,0.002654]
[1727395588644,3.19258556,65224.0,65223.0,0.002654]
[1727395589088,3.07755303,65224.0,65223.0,0.002654]
[1727395589304,3.16985303,65224.0,65223.0,0.002654]
[1727395589525,3.38822521,65224.0,65223.0,0.002654]
[1727395589735,3.29528135,65224.0,65223.0,0.002654]
[1727395590206,3.29728135,65224.0,65223.0,0.002654]
[1727395590428,3.29228135,65224.0,65223.0,0.002654]
[1727395590673,3.29028135,65224.0,65223.0,0.001654]
[1727395590912,3.29728135,65224.0,65223.0,0.002654]
[1727395593045,3.32132769,65224.0,65223.0,0.002654]
[1727395593255,3.45937393,65224.0,65223.0,0.002654]
[1727395593689,3.29728135,65224.0,65223.0,0.002654]
[1727395594105,3.43533156,65224.0,65223.0,0.002654]
[1727395594347,3.43533428,65224.0,65223.0,0.002654]
[1727395594820,3.43533327,65224.0,65223.0,0.002654]
[1727395596545,3.29728135,65224.0,65223.0,0.002654]
[1727395597201,3.43535879,65224.0,65223.0,0.002654]
[1727395597697,3.29728135,65224.0,65223.0,0.002654]
[1727395597930,3.43535782,65224.0,65223.0,0.002654]
[1727395598617,3.29728135,65224.0,65223.0,0.002654]
[1727395598850,3.43536331,65224.0,65223.0,0.002654]
[1727395599065,3.29728135,65224.0,65223.0,0.002654]
[1727395599920,3.32132799,65224.0,65223.0,0.002654]
[1727395600708,3.15372799,65224.0,65223.0,0.002654]
[1727395600918,2.99052942,65224.0,65223.0,0.002654]
[1727395601137,3.10814675,65224.0,65223.0,0.002654]
[1727395601593,2.83214136,65224.0,65223.0,0.002654]
[1727395601797,2.95180137,65224.0,65223.0,0.002654]
[1727395602017,2.95175869,65224.0,65223.0,0.002654]
[1727395602721,2.95181402,65224.0,65223.0,0.002654]
[1727395602955,2.94981402,65224.0,65223.0,0.002654]
[1727395603185,3.10620208,65224.0,65223.0,0.002654]
[1727395603411,2.60113608,65224.0,65223.0,0.002654]
[1727395603640,4.26855408,65224.0,65223.0,0.002654]
[1727395603864,4.45179003,65224.0,65223.0,0.002654]
[1727395604314,4.3136824,65224.0,65223.0,0.002654]
[1727395604538,4.28963576,65224.0,65223.0,0.002654]
[1727395605427,4.42774339,65224.0,65223.0,0.002654]
[1727395605654,4.28963576,65224.0,65223.0,0.002654]
[1727395606384,4.11477076,65224.0,65223.0,0.002654]
[1727395606813,4.06964244,65224.0,65223.0,0.002654]
[1727395607435,4.11480264,65224.0,65223.0,0.002654]
[1727395607883,3.86483699,65224.0,65223.0,0.002654]
[1727395608104,2.61048666,65224.0,65223.0,0.002654]
[1727395608319,2.70437433,65224.0,65223.0,0.180554]
[1727395608528,2.68966733,65224.0,65223.0,0.180554]
[1727395608766,2.53863433,65224.0,65223.0,0.180554]
[1727395608957,2.53363433,65224.0,65223.0,0.180554]
[1727395609184,2.54841463,65224.0,65223.0,0.180554]
[1727395609411,2.55341463,65224.0,65223.0,0.180554]
[1727395609659,2.54641463,65224.0,65223.0,0.179554]
[1727395609860,2.96632563,65224.0,65223.0,0.180554]
[1727395610117,3.03538573,65224.0,65223.0,0.182554]
[1727395610327,3.02838573,65224.0,65223.0,0.181554]
[1727395610978,2.30743406,65224.0,65223.0,0.181554]
[1727395611648,2.38122709,65224.0,65223.0,0.181554]
[1727395611882,2.38122709,65224.0,65223.0,0.179554]
[1727395612321,4.63865409,65224.0,65223.0,0.005654]
[1727395612738,4.63865409,65224.0,65223.0,0.001654]
[1727395613160,4.06492409,65224.0,65223.0,0.003654]
[1727395613367,4.06492409,65224.0,65223.0,0.005654]
[1727395613625,3.99113106,65224.0,65223.0,0.003654]
[1727395614533,3.96708578,65224.0,65223.0,0.003654]
[1727395614978,3.80648988,65224.0,65223.0,0.003654]
[1727395615210,3.83152148,65224.0,65223.0,0.003654]
[1727395615430,3.82946735,65224.0,65223.0,0.003654]
[1727395615653,3.89381784,65224.0,65223.0,0.003654]
[1727395616807,4.00893385,65224.0,65223.0,0.003654]
[1727395617484,3.89381784,65224.0,65223.0,0.003654]
[1727395617927,4.01086435,65224.0,65223.0,0.003654]
[1727395618145,3.82946707,65224.0,65223.0,0.003654]
[1727395618345,3.82946403,65224.0,65223.0,0.003654]
[1727395618553,3.55529878,65224.0,65223.0,0.003654]
[1727395618755,3.62432325,65224.0,65223.0,0.003654]
[1727395618972,3.55529878,65224.0,65223.0,0.003654]
[1727395619176,3.57934273,65224.0,65223.0,0.003654]
[1727395619600,3.6483672,65224.0,65223.0,0.003654]
[1727395619809,3.56559973,65224.0,65223.0,0.003654]
[1727395620018,3.65763398,65224.0,65223.0,0.003654]
[1727395620218,3.75827204,65224.0,65223.0,0.003654]
[1727395620431,3.66623779,65224.0,65223.0,0.003654]
[1727395621094,3.75827204,65224.0,65223.0,0.003654]
[1727395621338,3.66623779,65224.0,65223.0,0.003654]